fUSD/lending_fUSD_20260620
["ID","MTS","AMOUNT","RATE_DAILY","PERIOD"]
[425807272,1781919044000,-190.0,0.00031919,30]
[425807277,1781919044000,-158.0,0.0003192,30]
[425807271,1781919044000,-152.0,0.00031919,30]
[425807276,1781919044000,-233.0,0.00031919,30]
[425807264,1781919044000,-29869.0,0.00031856,7]
[425807269,1781919044000,-431.0,0.00031919,30]
[425807270,1781919044000,-151.0,0.00031919,30]
[425807268,1781919044000,-297.0,0.00031919,30]
[425807265,1781919044000,-241.0,0.000319,120]
[425807346,1781919045000,-500.0,0.00032876,120]
[425807345,1781919045000,-500.0,0.00032876,120]
[425807343,1781919045000,-519.01954751,0.00032873,2]
[425807344,1781919045000,-500.0,0.00032876,120]
[425807341,1781919045000,-500.0,0.00032831,7]
[425807337,1781919045000,-381.80942428,0.00032783,2]
[425807342,1781919045000,-9990.94327511,0.00032868,2]
[425807349,1781919045000,-500.0,0.00032876,120]
[425807340,1781919045000,-2626.10166162,0.00032811,2]
[425807339,1781919045000,-167.45969096,0.000328,2]
[425807347,1781919045000,-500.0,0.00032876,120]
[425807338,1781919045000,-416.80169399,0.00032783,2]
[425807348,1781919045000,-500.0,0.00032876,120]
[425807373,1781919045000,-250.0,0.00032932,27]
[425807351,1781919045000,-151.0,0.00032877,7]
[425807352,1781919045000,-151.0,0.00032877,7]
[425807359,1781919045000,-474.6405742,0.000329,2]
[425807361,1781919045000,-644.29,0.00032917,2]
[425807360,1781919045000,-185.60184986,0.000329,2]
[425807358,1781919045000,-194.64603169,0.000329,2]
[425807353,1781919045000,-167.88420085,0.00032877,2]
[425807354,1781919045000,-150.0,0.00032877,120]
[425807355,1781919045000,-151.873099,0.00032877,120]
[425807356,1781919045000,-241.0,0.000329,120]
[425807357,1781919045000,-5000.0,0.000329,12]
[425807334,1781919045000,-1727.29032868,0.00032744,2]
[425807350,1781919045000,-150.0,0.00032876,2]
[425807336,1781919045000,-151.0,0.00032783,2]
[425807306,1781919045000,-416.80169399,0.000324,2]
[425807335,1781919045000,-242.15909246,0.00032783,2]
[425807314,1781919045000,-159.73890198,0.00032411,2]
[425807310,1781919045000,-169.27512359,0.00032404,2]
[425807363,1781919045000,-431.0,0.00032919,30]
[425807308,1781919045000,-44058.64230458,0.000324,2]
[425807309,1781919045000,-2000.0,0.000324,7]
[425807307,1781919045000,-171.30093727,0.000324,30]
[425807312,1781919045000,-154.13530849,0.00032404,2]
[425807313,1781919045000,-156.89671053,0.00032405,2]
[425807311,1781919045000,-167.67808975,0.00032404,2]
[425807326,1781919045000,-972.4798767,0.00032505,2]
[425807316,1781919045000,-164.29420679,0.00032411,2]
[425807315,1781919045000,-170.72173935,0.00032411,2]
[425807317,1781919045000,-169.38071459,0.00032411,2]
[425807319,1781919045000,-170.91896187,0.00032411,2]
[425807318,1781919045000,-159.0235818,0.00032411,2]
[425807325,1781919045000,-800.0,0.000325,2]
[425807324,1781919045000,-1545.92,0.00032493,120]
[425807322,1781919045000,-635.94610025,0.00032437,2]
[425807320,1781919045000,-192.37737476,0.00032411,2]
[425807321,1781919045000,-728.95482485,0.00032416,2]
[425807323,1781919045000,-5087.15049895,0.00032467,2]
[425807327,1781919045000,-1371.52079393,0.00032528,2]
[425807330,1781919045000,-296.0949529,0.00032671,2]
[425807328,1781919045000,-150.0,0.00032562,2]
[425807329,1781919045000,-1727.29032868,0.00032663,2]
[425807331,1781919045000,-1994.48,0.000327,30]
[425807332,1781919045000,-200.0,0.00032735,2]
[425807333,1781919045000,-1727.29032868,0.00032741,2]
[425807362,1781919045000,-297.0,0.00032919,30]
[425807376,1781919045000,-394.0,0.00032932,27]
[425807365,1781919045000,-152.0,0.00032919,30]
[425807396,1781919045000,-500.0,0.00032986,2]
[425807400,1781919045000,-500.0,0.00032986,2]
[425807401,1781919045000,-500.0,0.00032986,2]
[425807409,1781919045000,-500.0,0.00032986,2]
[425807406,1781919045000,-500.0,0.00032986,2]
[425807405,1781919045000,-500.0,0.00032986,2]
[425807402,1781919045000,-500.0,0.00032986,2]
[425807404,1781919045000,-500.0,0.00032986,2]
[425807411,1781919045000,-500.0,0.00032986,2]
[425807410,1781919045000,-500.0,0.00032986,2]
[425807403,1781919045000,-500.0,0.00032986,2]
[425807408,1781919045000,-500.0,0.00032986,2]
[425807407,1781919045000,-500.0,0.00032986,2]
[425807366,1781919045000,-190.0,0.00032919,30]
[425807423,1781919045000,-500.0,0.00032986,2]
[425807414,1781919045000,-500.0,0.00032986,2]
[425807415,1781919045000,-500.0,0.00032986,2]
[425807412,1781919045000,-500.0,0.00032986,2]
[425807416,1781919045000,-500.0,0.00032986,2]
[425807419,1781919045000,-500.0,0.00032986,2]
[425807418,1781919045000,-500.0,0.00032986,2]
[425807417,1781919045000,-500.0,0.00032986,2]
[425807422,1781919045000,-500.0,0.00032986,2]
[425807421,1781919045000,-500.0,0.00032986,2]
[425807420,1781919045000,-500.0,0.00032986,2]
[425807424,1781919045000,-500.0,0.00032986,2]
[425807425,1781919045000,-322.0,0.00032986,2]
[425807395,1781919045000,-500.0,0.00032986,2]
[425807398,1781919045000,-500.0,0.00032986,2]
[425807413,1781919045000,-500.0,0.00032986,2]
[425807388,1781919045000,-500.0,0.00032986,2]
[425807393,1781919045000,-500.0,0.00032986,2]
[425807364,1781919045000,-151.0,0.00032919,30]
[425807370,1781919045000,-158.0,0.0003292,30]
[425807372,1781919045000,-152.0,0.0003292,30]
[425807371,1781919045000,-158.0,0.0003292,30]
[425807367,1781919045000,-154.0,0.00032919,30]
[425807369,1781919045000,-233.0,0.00032919,30]
[425807368,1781919045000,-165.0,0.00032919,30]
[425807374,1781919045000,-250.0,0.00032932,27]
[425807375,1781919045000,-250.0,0.00032932,27]
[425807378,1781919045000,-500.0,0.00032986,2]
[425807380,1781919045000,-500.0,0.00032986,2]
[425807379,1781919045000,-500.0,0.00032986,2]
[425807377,1781919045000,-390.0,0.00032985,2]
[425807382,1781919045000,-500.0,0.00032986,2]
[425807394,1781919045000,-500.0,0.00032986,2]
[425807385,1781919045000,-500.0,0.00032986,2]
[425807389,1781919045000,-500.0,0.00032986,2]
[425807392,1781919045000,-500.0,0.00032986,2]
[425807390,1781919045000,-500.0,0.00032986,2]
[425807399,1781919045000,-500.0,0.00032986,2]
[425807386,1781919045000,-500.0,0.00032986,2]
[425807391,1781919045000,-500.0,0.00032986,2]
[425807387,1781919045000,-500.0,0.00032986,2]
[425807383,1781919045000,-500.0,0.00032986,2]
[425807384,1781919045000,-500.0,0.00032986,2]
[425807381,1781919045000,-500.0,0.00032986,2]
[425807397,1781919045000,-500.0,0.00032986,2]
[425807446,1781919046000,-22500.0,0.00033,2]
[425807443,1781919046000,-12499.97,0.00033,2]
[425807439,1781919046000,-7524.15,0.00033,2]
[425807444,1781919046000,-12667.6,0.00033,10]
[425807445,1781919046000,-10000.0,0.00033,2]
[425807450,1781919046000,-18268.27,0.00033,2]
[425807460,1781919046000,-12499.99,0.00033,2]
[425807453,1781919046000,-12500.0,0.00033,2]
[425807454,1781919046000,-9999.99,0.00033,2]
[425807452,1781919046000,-9999.99,0.00033,2]
[425807455,1781919046000,-18500.53,0.00033,2]
[425807447,1781919046000,-15000.0,0.00033,2]
[425807465,1781919046000,-15000.0,0.00033,2]
[425807451,1781919046000,-12500.0,0.00033,2]
[425807440,1781919046000,-214.37,0.00033,2]
[425807427,1781919046000,-500.0,0.00032999,7]
[425807441,1781919046000,-22500.0,0.00033,2]
[425807456,1781919046000,-12499.99,0.00033,2]
[425807426,1781919046000,-500.0,0.00032999,7]
[425807428,1781919046000,-305.95,0.00032999,7]
[425807433,1781919046000,-1000.0,0.00032999,120]
[425807431,1781919046000,-500.0,0.00032999,120]
[425807434,1781919046000,-1000.0,0.00032999,120]
[425807442,1781919046000,-15000.0,0.00033,2]
[425807429,1781919046000,-500.0,0.00032999,120]
[425807436,1781919046000,-1000.0,0.00032999,120]
[425807432,1781919046000,-500.0,0.00032999,120]
[425807435,1781919046000,-1000.0,0.00032999,120]
[425807438,1781919046000,-5000.0,0.00033,34]
[425807448,1781919046000,-9999.99,0.00033,2]
[425807437,1781919046000,-4877.91598071,0.00033,2]
[425807430,1781919046000,-500.0,0.00032999,120]
[425807464,1781919046000,-4178.14,0.00033,2]
[425807457,1781919046000,-9999.97,0.00033,2]
[425807458,1781919046000,-15000.0,0.00033,2]
[425807480,1781919046000,-8928.58,0.00033,2]
[425807479,1781919046000,-15000.0,0.00033,2]
[425807482,1781919046000,-15000.0,0.00033,2]
[425807485,1781919046000,-12500.0,0.00033,2]
[425807486,1781919046000,-22499.98,0.00033,2]
[425807484,1781919046000,-15000.0,0.00033,2]
[425807478,1781919046000,-10078.4,0.00033,2]
[425807487,1781919046000,-15000.0,0.00033,2]
[425807488,1781919046000,-15000.0,0.00033,2]
[425807490,1781919046000,-15000.0,0.00033,2]
[425807489,1781919046000,-12500.0,0.00033,2]
[425807493,1781919046000,-10000.0,0.00033,2]
[425807492,1781919046000,-12500.0,0.00033,2]
[425807494,1781919046000,-19048.73881441,0.00033,2]
[425807491,1781919046000,-22499.98,0.00033,2]
[425807481,1781919046000,-13381.07,0.00033,2]
[425807463,1781919046000,-15000.0,0.00033,2]
[425807476,1781919046000,-22500.0,0.00033,2]
[425807483,1781919046000,-10000.0,0.00033,2]
[425807459,1781919046000,-15000.0,0.00033,2]
[425807462,1781919046000,-22499.97,0.00033,2]
[425807467,1781919046000,-22499.99,0.00033,2]
[425807466,1781919046000,-4159.73,0.00033,2]
[425807468,1781919046000,-15000.0,0.00033,2]
[425807469,1781919046000,-12500.0,0.00033,2]
[425807461,1781919046000,-22499.99,0.00033,2]
[425807474,1781919046000,-9999.98,0.00033,2]
[425807471,1781919046000,-22500.0,0.00033,2]
[425807475,1781919046000,-22499.98,0.00033,2]
[425807473,1781919046000,-9999.97,0.00033,2]
[425807477,1781919046000,-15000.0,0.00033,2]
[425807472,1781919046000,-15000.0,0.00033,2]
[425807470,1781919046000,-22499.97,0.00033,2]
[425807498,1781919047000,-1167.5,0.00033,2]
[425807500,1781919047000,-976.44824101,0.00027397,10]
[425807499,1781919047000,-769.0,0.0002,2]
[425807501,1781919047000,-365.54270048,0.00027397,10]
[425807503,1781919047000,-2576.92350546,0.00027397,10]
[425807502,1781919047000,-3694.20555305,0.00027397,10]
[425807508,1781919048000,-159.96,0.00029132,7]
[425807506,1781919048000,-162.93,0.0002863,30]
[425807505,1781919048000,-2085.4926467,0.00028447,2]
[425807507,1781919048000,-159.96,0.0002863,30]
[425807512,1781919048000,-2283.76118559,0.00033,2]
[425807513,1781919048000,-9999.99,0.00033,2]
[425807504,1781919048000,-302.12,0.00027814,2]
[425807509,1781919048000,-1187.81567942,0.00029951,2]
[425807515,1781919048000,-734.60105048,0.00033,2]
[425807510,1781919048000,-217.54413292,0.00030002,7]
[425807514,1781919048000,-22500.0,0.00033,2]
[425807517,1781919048000,-218.43,0.00028797,7]
[425807518,1781919048000,-115.13466327,0.00028964,2]
[425807511,1781919048000,-500.0,0.00032875,120]
[425807516,1781919048000,-218.43,0.0002863,30]
[425807519,1781919147000,-1500.0,0.00021897,2]
[425807520,1781919148000,160.0,0.00030136,120]
[425807525,1781919376000,-4991.78062905,0.000218,2]
[425807526,1781919389000,-4991.78062905,0.000218,2]
[425807527,1781919460000,2178.0239645,0.00030136,120]
[425807528,1781919851000,-1500.0,0.00019568,2]
[425807529,1781919864000,-152.69,0.0001764,2]
[425807531,1781920012000,-416.15906213,0.00019481,2]
[425807542,1781920232000,-157.0,0.0002,2]
[425807536,1781920232000,-2500.0,0.00019492,2]
[425807535,1781920232000,-1500.0,0.00019352,2]
[425807537,1781920232000,-154.76978992,0.00019633,2]
[425807538,1781920232000,-1555.5,0.000199,2]
[425807540,1781920232000,-276.0,0.0002,2]
[425807546,1781920232000,-410.0,0.00020516,2]
[425807539,1781920232000,-197.0,0.0002,2]
[425807545,1781920232000,-400.0,0.00020516,2]
[425807549,1781920232000,-276.0,0.00021,2]
[425807551,1781920232000,-2465.43076668,0.00021287,2]
[425807548,1781920232000,-197.0,0.00021,2]
[425807550,1781920232000,-169.65321299,0.00021,2]
[425807541,1781920232000,-158.51116225,0.0002,2]
[425807544,1781920232000,-407.0,0.00020516,2]
[425807547,1781920232000,-716.61919061,0.00020996,2]
[425807543,1781920232000,-1613.0535,0.00020448,2]
[425807589,1781920238000,-34.56923332,0.00021287,2]
[425807590,1781920238000,-799.63295979,0.00021429,2]
[425807588,1781920238000,-177.28397235,0.00019899,2]
[425807595,1781920238000,-411.0,0.000218,2]
[425807592,1781920238000,-502.57112359,0.00021799,2]
[425807596,1781920238000,-407.0,0.000218,2]
[425807599,1781920238000,-397.0,0.000218,2]
[425807593,1781920238000,-500.0,0.00021799,2]
[425807591,1781920238000,-1700.36704021,0.00021429,2]
[425807594,1781920238000,-228.92641495,0.00021799,2]
[425807600,1781920238000,-37.9160503,0.000218,2]
[425807597,1781920238000,-402.0,0.000218,2]
[425807602,1781920238000,-412.0,0.000218,2]
[425807605,1781920238000,-400.0,0.000218,2]
[425807604,1781920238000,-399.0,0.000218,2]
[425807607,1781920238000,-407.0,0.000218,2]
[425807603,1781920238000,-410.0,0.000218,2]
[425807606,1781920238000,-400.0,0.000218,2]
[425807608,1781920238000,-408.0,0.000218,2]
[425807611,1781920238000,-7529.61575197,0.00022,2]
[425807610,1781920238000,-276.0,0.00022,2]
[425807609,1781920238000,-197.0,0.00022,2]
[425807598,1781920238000,-405.0,0.000218,2]
[425807601,1781920238000,-373.0839497,0.000218,2]
[425807628,1781920239000,-776.87643156,0.00022,2]
[425807668,1781920246000,-506.0,0.00022,2]
[425807672,1781920282000,151.0,0.00030137,120]
[425807673,1781920298000,151.0,0.00022,30]
[425807674,1781920304000,151.0,0.00022,30]
[425807675,1781920309000,151.0,0.00030137,120]
[425807676,1781920326000,2876.0,0.00030137,120]
[425807677,1781920345000,-500.0,0.00019351,2]
[425807678,1781920548000,154.05695673,0.0003013,120]
[425807680,1781920595000,386.89,0.0002973,120]
[425807681,1781920613000,155.27064894,0.00028,120]
[425807685,1781920666000,189.43193101,0.0003,120]
[425807689,1781921016000,185.0,0.00029987,120]
[425807696,1781921432000,-365.813,0.00019999,2]
[425807697,1781921432000,-131.31609885,0.00019999,2]
[425807699,1781921432000,-158.0,0.0002,2]
[425807698,1781921432000,-277.0,0.0002,2]
[425807700,1781921432000,-99.48357972,0.0002,2]
[425807702,1781921432000,-336.50327672,0.0002,2]
[425807701,1781921432000,-51.51642028,0.0002,2]
[425807706,1781921432000,-1008.0592262,0.0002,2]
[425807704,1781921432000,-156.0,0.0002,2]
[425807705,1781921432000,-1817.3954006,0.0002,2]
[425807703,1781921432000,-265.2719339,0.0002,2]
[425807708,1781921432000,-659.1457183,0.0002,2]
[425807709,1781921432000,-3828.28037571,0.0002,2]
[425807707,1781921432000,-1649.12316066,0.0002,2]
[425807767,1781921438000,-1111.3935991,0.00021238,2]
[425807764,1781921438000,-31539.7718,0.00021138,2]
[425807762,1781921438000,-310.0,0.00021,2]
[425807758,1781921438000,-166.0,0.00021,2]
[425807759,1781921438000,-160.84684127,0.00021,2]
[425807756,1781921438000,-310.0,0.0002,2]
[425807760,1781921438000,-156.0,0.00021,2]
[425807757,1781921438000,-277.0,0.00021,2]
[425807755,1781921438000,-131651.95282471,0.0002,2]
[425807761,1781921438000,-2749.0,0.00021,2]
[425807765,1781921438000,-99251.5608288,0.00021238,2]
[425807763,1781921438000,-410.0,0.00021012,2]
[425807773,1781921438000,-166.66,0.00021913,2]
[425807768,1781921438000,-701.1602897,0.00021238,2]
[425807771,1781921438000,-408.0,0.00021688,2]
[425807769,1781921438000,-2085.4926467,0.00021238,2]
[425807770,1781921438000,-3069.4365073,0.00021238,2]
[425807772,1781921438000,-150.11,0.000219,2]
[425807775,1781921438000,-3855.10781647,0.00022,2]
[425807776,1781921438000,-277.0,0.00022,2]
[425807777,1781921438000,-2212.8319751,0.00022,2]
[425807778,1781921438000,-300.0,0.00022,2]
[425807766,1781921438000,-208.1712796,0.00021238,2]
[425807779,1781921438000,-1162.9,0.00022,2]
[425807818,1781921439000,-151.0,0.00024499,2]
[425807821,1781921439000,-151.0,0.00024499,2]
[425807820,1781921439000,-151.0,0.00024499,2]
[425807824,1781921439000,-151.0,0.00024499,2]
[425807815,1781921439000,-151.0,0.00024499,2]
[425807823,1781921439000,-151.0,0.00024499,2]
[425807816,1781921439000,-151.0,0.00024499,2]
[425807813,1781921439000,-151.0,0.00024499,2]
[425807819,1781921439000,-151.0,0.00024499,2]
[425807814,1781921439000,-151.0,0.00024499,2]
[425807808,1781921439000,-151.0,0.00024499,2]
[425807822,1781921439000,-151.0,0.00024499,2]
[425807817,1781921439000,-151.0,0.00024499,2]
[425807836,1781921439000,-424.93862155,0.0002499,2]
[425807826,1781921439000,-151.0,0.00024499,2]
[425807827,1781921439000,-1149.1,0.0002464,7]
[425807831,1781921439000,-162.66,0.00024658,2]
[425807830,1781921439000,-163.26,0.00024658,2]
[425807829,1781921439000,-154.06,0.00024658,2]
[425807828,1781921439000,-1000.0,0.00024658,2]
[425807835,1781921439000,-222.69649273,0.000249,2]
[425807833,1781921439000,-2855.59326555,0.000249,2]
[425807832,1781921439000,-292.70746912,0.000249,2]
[425807834,1781921439000,-1215.86862172,0.000249,2]
[425807838,1781921439000,-471.77530222,0.00024999,2]
[425807807,1781921439000,-151.0,0.00024499,2]
[425807825,1781921439000,-151.0,0.00024499,2]
[425807811,1781921439000,-151.0,0.00024499,2]
[425807783,1781921439000,-407.18,0.00022466,2]
[425807809,1781921439000,-151.0,0.00024499,2]
[425807837,1781921439000,-308.83740364,0.00024999,10]
[425807781,1781921439000,-244.89608328,0.0002211,2]
[425807780,1781921439000,-156.0,0.00022,2]
[425807782,1781921439000,-166.66,0.00022374,30]
[425807784,1781921439000,-1613.7,0.00022466,2]
[425807785,1781921439000,-16914.46,0.00022659,2]
[425807786,1781921439000,-168.59594696,0.00022702,2]
[425807787,1781921439000,-154.55,0.00022803,2]
[425807789,1781921439000,-5000.0,0.00022862,2]
[425807788,1781921439000,-166.66,0.00022835,30]
[425807791,1781921439000,-172.0,0.00023,2]
[425807790,1781921439000,-277.0,0.00023,2]
[425807793,1781921439000,-2075.51,0.00023004,2]
[425807792,1781921439000,-706.0,0.00023,2]
[425807794,1781921439000,-217.83130084,0.00023081,3]
[425807795,1781921439000,-166.66,0.00023297,30]
[425807796,1781921439000,-562.5972,0.00023325,2]
[425807798,1781921439000,-166.59,0.00023488,2]
[425807797,1781921439000,-516.91363754,0.00023463,2]
[425807799,1781921439000,-166.66,0.00023758,30]
[425807801,1781921439000,-160.02071421,0.00023945,30]
[425807803,1781921439000,-356.28,0.0002411,2]
[425807802,1781921439000,-277.0,0.00024,2]
[425807805,1781921439000,-166.66,0.00024219,30]
[425807810,1781921439000,-151.0,0.00024499,2]
[425807804,1781921439000,-34419.82,0.00024174,2]
[425807812,1781921439000,-151.0,0.00024499,2]
[425807806,1781921439000,-150.0,0.00024333,2]
[425807839,1781921439000,-294.36369854,0.00025,2]
[425807800,1781921439000,-386.89,0.00023784,2]
[425807840,1781921439000,-211.40724256,0.00025,2]
[425807873,1781921439000,-99251.5608288,0.00026223,2]
[425807876,1781921439000,-390.0,0.0002631,2]
[425807875,1781921439000,-151.0,0.00026296,2]
[425807874,1781921439000,-35173.0,0.00026259,2]
[425807879,1781921439000,-444.63454296,0.00026455,2]
[425807878,1781921439000,-28031.17799352,0.000264,2]
[425807877,1781921439000,-190.75,0.0002639,2]
[425807899,1781921439000,-292.70746906,0.00026816,2]
[425807885,1781921439000,-706.07748194,0.000265,2]
[425807881,1781921439000,-273.259693,0.00026485,2]
[425807883,1781921439000,-414.915452,0.00026486,2]
[425807884,1781921439000,-150.0,0.00026486,5]
[425807880,1781921439000,-1215.86862171,0.00026471,2]
[425807882,1781921439000,-320.789575,0.00026486,2]
[425807888,1781921439000,-2008.83694237,0.000265,2]
[425807887,1781921439000,-1876.05273722,0.000265,2]
[425807886,1781921439000,-1285.28051455,0.000265,2]
[425807894,1781921439000,-2008.83694237,0.000267,2]
[425807893,1781921439000,-1876.05273722,0.000267,2]
[425807890,1781921439000,-155.42,0.00026623,2]
[425807896,1781921439000,-163.26,0.00026712,2]
[425807895,1781921439000,-482.4203208,0.000267,2]
[425807891,1781921439000,-706.07748194,0.000267,2]
[425807892,1781921439000,-1285.28051455,0.000267,2]
[425807897,1781921439000,-162.66,0.00026712,2]
[425807898,1781921439000,-386.89,0.00026757,2]
[425807841,1781921439000,-1818.5898779,0.00025,2]
[425807867,1781921439000,-4610.88759577,0.00026,2]
[425807871,1781921439000,-254.49,0.00026027,7]
[425807889,1781921439000,-482.4203208,0.000265,2]
[425807869,1781921439000,-163.26,0.00026027,30]
[425807870,1781921439000,-162.66,0.00026027,30]
[425807844,1781921439000,-3100.75674229,0.00025,2]
[425807845,1781921439000,-7261.4787169,0.00025,2]
[425807842,1781921439000,-540.0,0.00025,2]
[425807847,1781921439000,-3378.12247993,0.00025,2]
[425807846,1781921439000,-2241.98134344,0.00025,2]
[425807848,1781921439000,-170.47794047,0.00025,2]
[425807850,1781921439000,-961631.97158675,0.00025,2]
[425807851,1781921439000,-190.75,0.00025,2]
[425807849,1781921439000,-4882.93828405,0.00025,2]
[425807861,1781921439000,-909.8865178,0.00025771,2]
[425807853,1781921439000,-190.75,0.00025,2]
[425807854,1781921439000,-190.75,0.00025,2]
[425807843,1781921439000,-622.30483717,0.00025,2]
[425807852,1781921439000,-190.75,0.00025,2]
[425807860,1781921439000,-200.0,0.00025709,2]
[425807865,1781921439000,-612.59133806,0.0002599,2]
[425807868,1781921439000,-220.6392619,0.00026,2]
[425807862,1781921439000,-34419.82,0.00025786,2]
[425807864,1781921439000,-2855.59326555,0.00025863,2]
[425807866,1781921439000,-1134.98924455,0.00026,2]
[425807858,1781921439000,-500.0,0.00025599,2]
[425807856,1781921439000,-162.66,0.00025342,7]
[425807863,1781921439000,-562.5975,0.00025831,2]
[425807855,1781921439000,-163.26,0.00025342,7]
[425807872,1781921439000,-562.59861774,0.00026196,2]
[425807859,1781921439000,-309.53498735,0.00025599,2]
[425807857,1781921439000,-313.22732885,0.00025417,2]
[425807934,1781921440000,-2992.0,0.00027123,2]
[425807929,1781921440000,-1910.18787185,0.0002712,2]
[425807931,1781921440000,-2054.15682156,0.0002712,2]
[425807932,1781921440000,-162.61931854,0.0002712,30]
[425807925,1781921440000,-1651.81367706,0.0002712,2]
[425807930,1781921440000,-1980.8648231,0.0002712,2]
[425807937,1781921440000,-192.08,0.00027148,7]
[425807935,1781921440000,-1836.0,0.00027125,5]
[425807933,1781921440000,-437.0,0.00027122,2]
[425807928,1781921440000,-1842.0326633,0.0002712,2]
[425807926,1781921440000,-1712.93078311,0.0002712,2]
[425807942,1781921440000,-482.4203208,0.000273,2]
[425807938,1781921440000,-706.07748194,0.000273,2]
[425807941,1781921440000,-2008.83694237,0.000273,2]
[425807940,1781921440000,-1876.05273722,0.000273,2]
[425807939,1781921440000,-1285.28051455,0.000273,2]
[425807943,1781921440000,-299.61380229,0.0002738,2]
[425807945,1781921440000,-500.0,0.0002739,2]
[425807947,1781921440000,-163.26,0.00027397,7]
[425807944,1781921440000,-500.0,0.0002739,2]
[425807927,1781921440000,-1776.30922209,0.0002712,2]
[425807946,1781921440000,-416.44234103,0.00027397,2]
[425807936,1781921440000,-3410.0,0.00027125,5]
[425807924,1781921440000,-1592.87721992,0.0002712,2]
[425807910,1781921440000,-151.0,0.0002712,2]
[425807923,1781921440000,-1536.04360648,0.0002712,2]
[425807952,1781921440000,-1000.0,0.00027397,20]
[425807904,1781921440000,-706.07748194,0.00027,2]
[425807907,1781921440000,-2008.83694237,0.00027,2]
[425807901,1781921440000,-2855.59326555,0.00026827,2]
[425807902,1781921440000,-468.99039334,0.00026926,14]
[425807905,1781921440000,-1285.28051455,0.00027,2]
[425807900,1781921440000,-168.59594696,0.00026821,2]
[425807903,1781921440000,-1237.67306818,0.00026926,14]
[425807906,1781921440000,-1876.05273722,0.00027,2]
[425807908,1781921440000,-482.4203208,0.00027,2]
[425807922,1781921440000,-1481.2378076,0.0002712,2]
[425807909,1781921440000,-200.0,0.00027115,2]
[425807912,1781921440000,-1030.0,0.0002712,2]
[425807913,1781921440000,-1068.11,0.0002712,2]
[425807917,1781921440000,-1235.18214925,0.0002712,2]
[425807915,1781921440000,-1148.61238259,0.0002712,2]
[425807916,1781921440000,-1191.11104074,0.0002712,2]
[425807914,1781921440000,-1107.63007,0.0002712,2]
[425807918,1781921440000,-1280.88388877,0.0002712,2]
[425807920,1781921440000,-1377.42282658,0.0002712,2]
[425807919,1781921440000,-1328.27659266,0.0002712,2]
[425807921,1781921440000,-1428.38747117,0.0002712,2]
[425807911,1781921440000,-151.0,0.0002712,2]
[425807951,1781921440000,-300.0,0.00027397,2]
[425807949,1781921440000,-1500.0,0.00027397,2]
[425807953,1781921440000,-151.0,0.00027397,2]
[425807979,1781921440000,-163.26,0.00028082,30]
[425807978,1781921440000,-1215.86862171,0.00028043,2]
[425807982,1781921440000,-2008.83694237,0.000281,2]
[425807986,1781921440000,-1285.28051455,0.000284,2]
[425807987,1781921440000,-2008.83694237,0.000284,2]
[425807981,1781921440000,-1285.28051455,0.000281,2]
[425807985,1781921440000,-151.0,0.00028267,2]
[425807983,1781921440000,-500.0,0.00028212,16]
[425807988,1781921440000,-200.13817817,0.0002842,2]
[425807984,1781921440000,-500.0,0.00028212,16]